bitfinex-derivatives/quotes_SOLF0:USTF0_20240924
["timestamp","ask_amount","ask_price","bid_price","bid_amount"]
[1727206437166,9.39,147.08,147.07,3.3998]
[1727206437872,3.47292148,147.09,147.07,3.3998]
[1727206438069,9.39,147.08,147.07,3.3998]
[1727206441471,9.39,147.08,147.03,1.4354]
[1727206441666,9.39,147.05,147.03,1.4354]
[1727206442071,9.39,147.05,147.04,3.4006]
[1727206442569,9.39,147.05,147.03,3.4006]
[1727206442768,9.39,147.04,147.03,3.4006]
[1727206444367,9.39,147.05,147.04,3.4005]
[1727206447766,9.39,147.07,147.03,9.39]
[1727206448669,9.39,147.05,147.01,9.39]
[1727206449766,9.39,147.05,147.04,3.4006]
[1727206452277,9.39,147.06,147.05,3.4002]
[1727206459088,9.39,147.06,147.04,3.4004]
[1727206459284,9.39,147.05,147.04,3.4004]
[1727206466293,9.39,147.06,147.04,3.4004]
[1727206466906,9.39,147.06,147.05,3.4003]
[1727206468101,3.3997,147.08,147.06,3.4001]
[1727206468300,9.39,147.07,147.06,3.4001]
[1727206469602,12.7899,147.07,147.05,3.4003]
[1727206469899,9.39,147.06,147.05,3.4003]
[1727206472400,9.39,147.06,147.04,100.0]
[1727206472604,9.39,147.05,146.89,81.64]
[1727206472811,9.39,146.97,146.93,9.39]
[1727206473103,9.39,146.97,146.96,3.4024]
[1727206480702,3.36814192,147.05,146.94,9.39]
[1727206480908,9.39,147.01,146.96,9.39]
[1727206481205,9.39,146.99,146.96,9.39]
[1727206482113,9.39,146.99,146.98,3.4019]
[1727206485219,9.39,147.01,146.97,9.39]
[1727206485409,9.39,147.01,146.97,10.7651]
[1727206485910,9.39,147.01,147.0,3.4014]
[1727206486109,9.39,147.01,146.97,1.3751]
[1727206486300,9.39,146.99,146.98,3.4019]
[1727206497513,9.39,146.99,146.97,4.7772]
[1727206498210,9.39,146.98,146.97,3.4021]
[1727206499524,9.39,146.99,146.97,3.4021]
[1727206499724,9.39,146.98,146.92,1.3983]
[1727206499922,9.39,146.95,146.92,1.3983]
[1727206500626,9.39,146.93,146.92,1.3983]
[1727206501218,9.39,146.93,146.92,4.8016]
[1727206502428,9.39,146.93,146.91,4.7985]
[1727206503035,9.39,146.92,146.88,9.26464079]
[1727206503328,9.39,146.89,146.88,9.26464079]
[1727206503531,9.39,146.89,146.88,1.4374]
[1727206504426,9.39,146.9,146.88,4.8415]
[1727206504624,9.39,146.91,146.88,4.8415]
[1727206504833,3.33446115,146.92,146.89,9.39]
[1727206505231,3.33446115,146.92,146.91,3.4036]
[1727206505533,3.33446115,146.92,146.91,12.7936]
[1727206505729,3.33446115,146.92,146.91,3.4036]
[1727206507826,12.72446115,146.92,146.9,3.4037]
[1727206509227,12.72446115,146.92,146.91,3.4036]
[1727206510435,3.33446115,146.92,146.91,3.4036]
[1727206511833,12.72446115,146.92,146.9,3.4037]
[1727206512023,9.39,146.91,146.9,3.4037]
[1727206512433,12.72446115,146.92,146.91,3.4036]
[1727206514325,12.72446115,146.92,146.9,3.4037]
[1727206514526,9.39,146.91,146.9,3.4037]
[1727206517438,9.39,146.91,146.88,1.4374]
[1727206517647,9.39,146.89,146.86,1.3948]
[1727206518042,9.39,146.89,146.88,3.4041]
[1727206518742,9.39,146.9,146.89,3.4039]
[1727206521045,9.39,146.9,146.88,3.4041]
[1727206521242,3.4036,146.91,146.88,3.4041]
[1727206521243,9.39,146.89,146.88,3.4041]
[1727206522356,9.39,146.89,146.79,9.39]
[1727206522641,9.39,146.84,146.81,4.175]
[1727206522848,9.39,146.84,146.83,3.4053]
[1727206523345,9.39,146.84,146.82,3.4056]
[1727206523647,9.39,146.83,146.82,3.4056]
[1727206523845,9.39,146.83,146.76,1.3323]
[1727206523846,9.39,146.83,146.8,3.406]
[1727206524051,9.39,146.81,146.77,2.8127]
[1727206524238,3.43277482,146.88,146.77,2.8127]
[1727206524440,9.39,146.81,146.8,3.406]
[1727206532054,12.7959,146.81,146.77,2.8127]
[1727206532252,9.39,146.78,146.65,24.09415294]
[1727206532556,9.39,146.77,146.71,13.4242]
[1727206532847,9.39,146.77,146.73,9.39]
[1727206533254,9.39,146.77,146.76,3.407]
[1727206533647,9.39,146.78,146.72,9.39]
[1727206534053,9.39,146.78,146.77,3.4067]
[1727206536158,94.19329431,146.85,146.77,9.39]
[1727206536354,9.39,146.85,146.8,9.39]
[1727206536557,9.39,146.88,146.87,3.4044]
[1727206537556,9.39,146.88,146.79,3.47375596]
[1727206537557,85.1348808,146.99,146.85,10.8375]
[1727206537749,9.39,146.9,146.86,1.4276]
[1727206538247,18.1134,146.92,146.86,1.4276]
[1727206538656,18.1134,146.92,146.88,3.4041]
[1727206539254,18.1134,146.92,146.89,3.404]
[1727206539451,81.76,146.99,146.86,1.4276]
[1727206539755,14.71,146.92,146.87,1.4167]
[1727206540560,18.1135,146.92,146.87,1.4167]
[1727206541556,18.1135,146.92,146.88,3.4042]
[1727206541950,3.4036,146.91,146.87,1.4167]
[1727206542156,3.4036,146.91,146.87,3.4044]
[1727206542659,3.4038,146.9,146.87,3.4044]
[1727206543866,3.47422518,146.94,146.85,1.4475]
[1727206544156,14.71,146.89,146.85,1.4475]
[1727206544467,3.4038,146.9,146.87,3.4044]
[1727206544857,14.71,146.91,146.87,3.4044]
[1727206545259,18.09862397,146.91,146.87,3.4044]
[1727206546058,18.09862397,146.91,146.85,1.4475]
[1727206546259,18.09862397,146.91,146.88,3.4041]
[1727206546859,21.50232397,146.91,146.88,3.4041]
[1727206547561,3.4038,146.9,146.87,3.4043]
[1727206550869,14.71,146.89,146.86,3.4046]
[1727206551072,14.71,146.89,146.82,1.4345]
[1727206551467,18.1141,146.89,146.85,3.4047]
[1727206551772,21.47626439,146.89,146.85,3.4047]
[1727206552372,21.47626439,146.89,146.82,1.4345]
[1727206552373,14.71,146.87,146.82,1.4345]
[1727206552673,14.71,146.85,146.82,1.4345]
[1727206553278,14.71,146.85,146.84,3.4051]
[1727206554869,14.71,146.87,146.85,3.4049]
[1727206555073,14.71,146.87,146.82,1.4345]
[1727206555473,14.71,146.87,146.85,3.4048]
[1727206555972,14.71,146.87,146.82,1.4345]
[1727206556177,3.4041,146.89,146.82,1.4345]
[1727206556178,14.71,146.89,146.82,1.4345]
[1727206556491,14.71,146.89,146.82,16.1445]
[1727206558673,14.71,146.89,146.87,3.4044]
[1727206560278,9.41,146.88,146.87,3.4044]
[1727206560478,3.45242612,146.95,146.87,9.41]
[1727206560678,9.41,146.91,146.87,9.41]
[1727206561990,90.68279252,146.97,146.87,9.41]
[1727206562200,9.41,146.95,146.9,9.41]
[1727206562678,9.41,146.95,146.91,9.41]
[1727206563191,9.41,146.96,146.91,9.41]
[1727206563393,90.68279252,146.97,146.92,9.41]
[1727206563895,90.68279252,146.97,146.95,3.4026]
[1727206564098,3.35921536,147.03,146.93,9.41]
[1727206564282,3.4013,147.01,146.97,3.402]
[1727206564488,3.4013,147.01,146.94,4.074]
[1727206565187,18.1112,147.02,146.94,4.074]
[1727206565483,14.71,147.02,146.94,4.074]
[1727206565694,3.4013,147.01,146.94,4.074]
[1727206565894,3.4013,147.01,146.98,3.4018]
[1727206566903,3.4017,147.0,146.94,4.074]
[1727206567387,3.4017,147.0,146.96,3.4023]
[1727206567893,14.71,146.98,146.94,7.4768]
[1727206568395,18.1121,146.98,146.94,7.4768]
[1727206568593,14.71,146.98,146.94,4.074]
[1727206569781,14.71,147.0,146.94,4.074]
[1727206570001,3.4019,146.99,146.96,3.4024]
[1727206570293,81.72,147.07,146.94,4.074]
[1727206570294,14.71,146.98,146.94,2.7337]
[1727206570493,14.71,146.98,146.9,1.4179]
[1727206570692,14.71,146.96,146.9,4.1493]
[1727206571887,3.4028,146.95,146.92,3.4032]
[1727206572599,14.71,146.95,146.91,3.4035]
[1727206573093,3.4029,146.94,146.91,3.4035]
[1727206573503,3.4029,146.94,146.92,3.4033]
[1727206574601,18.1127,146.95,146.92,3.4033]
[1727206574996,14.71,146.97,146.93,3.4031]
[1727206575192,18.1122,146.97,146.9,4.1493]
[1727206575694,18.1122,146.97,146.93,3.4029]
[1727206578001,3.4025,146.96,146.93,3.4029]
[1727206579187,18.1123,146.97,146.94,3.4029]
[1727206579993,3.4025,146.96,146.94,3.4029]
[1727206580904,3.4025,146.96,146.93,3.403]
[1727206581900,3.4025,146.96,146.94,3.4029]
[1727206582599,14.71,147.0,146.91,14.71]
[1727206583102,14.71,147.0,146.93,14.71]
[1727206583303,3.4018,146.99,146.93,14.71]
[1727206583905,3.4018,146.99,146.96,3.4022]
[1727206585393,3.402,146.98,146.96,3.4022]
[1727206586790,3.402,146.98,146.95,3.4025]
[1727206587597,3.402,146.98,146.96,3.4024]
[1727206589001,3.402,146.98,146.95,3.4025]
[1727206590202,3.402,146.98,146.96,3.4024]
[1727206590404,12.812,146.98,146.96,3.4024]
[1727206590803,3.33072313,147.04,146.97,9.41]
[1727206591003,156.93325716,147.1,147.01,9.41]
[1727206591201,3.4006,147.04,147.01,9.41]
[1727206591401,9.41,147.03,146.98,13.4758]
[1727206591704,9.41,147.02,146.98,13.4758]
[1727206591905,9.41,147.0,146.98,4.0658]
[1727206592213,9.41,146.99,146.93,9.41]
[1727206592405,9.41,146.96,146.95,3.4025]
[1727206593001,9.41,146.96,146.94,3.4028]
[1727206593306,9.41,146.96,146.93,2.7611]
[1727206594808,9.41,146.96,146.95,3.4026]
[1727206595196,3.402,146.98,146.95,3.4026]
[1727206595396,9.41,146.97,146.93,2.7611]
[1727206597614,9.41,146.97,146.95,3.4025]
[1727206598308,9.41,146.96,146.93,2.7611]
[1727206598614,9.41,146.94,146.93,2.7611]
[1727206599114,9.41,146.94,146.93,6.1642]
[1727206599300,9.41,146.95,146.93,2.7611]
[1727206599612,9.41,146.95,146.94,3.4028]
[1727206606213,9.41,146.95,146.93,6.1641]
[1727206606619,9.41,146.94,146.93,3.403]
[1727206610929,9.41,146.95,146.9,9.41]
[1727206611620,9.41,146.95,146.94,3.4029]
[1727206611916,9.41,146.96,146.91,9.41]
[1727206612123,9.41,146.95,146.94,3.4029]
[1727206613113,6.72590582,146.98,146.95,3.4025]
[1727206613313,9.41,146.96,146.95,3.4025]
[1727206613727,81.68,147.07,146.97,3.402]
[1727206614032,9.41,146.99,146.97,3.402]
[1727206614518,9.41,146.99,146.98,3.4019]
[1727206614719,9.41,147.01,146.97,9.41]
[1727206615827,9.41,147.02,147.0,3.4013]
[1727206617129,9.41,147.03,147.01,3.4012]
[1727206617324,9.41,147.03,146.99,9.41]
[1727206618528,9.41,147.03,147.01,3.401]
[1727206621228,9.41,147.06,147.0,9.41]
[1727206621424,9.41,147.06,147.02,9.41]
[1727206621831,9.41,147.07,147.05,3.4002]
[1727206622033,9.41,147.07,147.03,9.41]
[1727206622228,9.41,147.07,147.05,3.4002]
[1727206622830,3.3996,147.09,147.06,3.4001]
[1727206623030,9.41,147.08,147.06,3.4001]
[1727206623235,12.8097,147.08,147.05,3.4002]
[1727206623430,9.41,147.07,147.05,3.4002]
[1727206624832,12.81,147.07,147.04,3.4004]
[1727206627232,9.41,147.05,147.03,3.4007]
[1727206627432,9.41,147.04,146.98,9.41]
[1727206627635,9.41,147.02,146.98,9.41]
[1727206628132,9.41,147.02,146.96,9.5199]
[1727206628133,9.41,147.0,146.96,2.7151]
[1727206628333,9.41,146.99,146.96,2.7151]
[1727206629840,9.41,146.99,146.98,3.4019]
[1727206630337,18.1113,147.01,146.98,3.4019]
[1727206630733,18.1113,147.01,146.99,3.4017]
[1727206630930,14.71,147.01,146.99,3.4017]
[1727206639249,3.401,147.02,146.99,3.4017]
[1727206639449,18.111,147.02,146.99,3.4017]
[1727206640351,14.71,147.02,146.96,2.7151]
[1727206640744,18.1112,147.02,146.96,2.7151]
[1727206641145,14.71,147.03,146.96,2.7151]
[1727206641341,90.75023564,147.11,146.99,14.71]
[1727206641556,14.71,147.09,146.99,14.71]
[1727206642154,3.4001,147.07,146.99,14.71]
[1727206642751,3.4001,147.07,147.04,3.4005]
[1727206643061,3.4001,147.06,147.04,3.4005]
[1727206646959,14.71,147.09,147.04,3.4005]
[1727206647157,90.75023564,147.11,147.05,3.4002]
[1727206647363,105.46023564,147.11,147.05,3.4002]
[1727206647771,3.3998,147.08,147.05,3.4002]
[1727206648664,3.3999,147.07,147.05,3.4002]
[1727206649263,3.3999,147.07,147.04,3.4004]
[1727206650562,3.3999,147.07,147.05,3.4003]
[1727206651868,3.3997,147.08,147.05,3.4003]
[1727206652264,9.4,147.07,147.05,3.4003]
[1727206657273,9.4,147.06,147.02,2.7916]
[1727206657571,9.4,147.03,146.98,2.7621]
[1727206657874,9.4,147.03,146.98,12.1621]
[1727206658872,90.59771241,147.1,147.0,9.4]
[1727206658873,9.4,147.04,147.0,9.4]
[1727206659078,9.4,147.06,147.01,9.4]
[1727206659265,93.97504265,147.1,147.02,3.4009]
[1727206659266,9.4,147.04,147.02,3.4009]
[1727206659470,9.4,147.03,146.98,12.1621]
[1727206659868,9.4,147.03,147.02,3.401]
[1727206661166,9.4,147.04,147.02,3.401]
[1727206661568,9.4,147.04,147.03,3.4008]
[1727206662572,93.97504265,147.1,147.05,3.4001]
[1727206662771,9.4,147.08,147.05,3.4001]
[1727206663669,9.4,147.07,147.04,3.4004]
[1727206663873,9.4,147.05,147.04,3.4004]
[1727206664380,9.4,147.05,147.03,3.4007]
[1727206664578,9.4,147.04,147.03,3.4007]
[1727206669783,12.8006,147.04,147.02,3.4009]
[1727206670684,9.4,147.03,147.02,3.4009]
[1727206672576,3.4004,147.05,147.02,3.4009]
[1727206672771,9.4,147.05,147.04,3.4006]
[1727206674376,9.4,147.05,147.02,3.4009]
[1727206674377,12.8004,147.05,147.02,3.4009]
[1727206674575,9.4,147.04,147.02,3.4009]
[1727206675178,9.4,147.03,146.99,3.4016]
[1727206675375,9.4,147.0,146.99,3.4016]
[1727206676172,100.77364265,147.1,147.0,3.4014]
[1727206676173,9.4,147.01,147.0,3.4014]
[1727206677886,9.4,147.01,146.98,2.7621]
[1727206678091,9.4,146.99,146.98,2.7621]
[1727206679090,9.4,146.99,146.98,6.164]
[1727206679292,9.4,147.0,146.98,2.7621]
[1727206679494,3.4012,147.02,146.98,2.7621]
[1727206679792,9.4,147.0,146.99,3.4017]
[1727206680994,9.4,147.02,147.0,3.4013]
[1727206681197,9.4,147.02,146.98,12.1621]
[1727206681401,3.4009,147.03,146.98,12.1621]
[1727206681402,9.4,147.03,146.98,12.1621]
[1727206681699,9.4,147.03,146.99,9.4]
[1727206681906,9.4,147.04,146.99,9.4]
[1727206682293,9.4,147.04,147.02,3.4009]
[1727206683194,9.4,147.05,147.01,9.4]
[1727206683390,93.97504265,147.1,147.04,9.4]
[1727206683391,90.59771241,147.1,147.04,9.4]
[1727206683699,90.59771241,147.1,147.08,9.4]
[1727206684394,9.4,147.09,147.04,13.4408]
[1727206684787,12.7994,147.09,147.06,3.3999]
[1727206684996,90.59771241,147.1,147.07,9.4]
[1727206685588,9.4,147.12,147.07,9.4]
[1727206686204,12.99334573,147.19,147.09,9.4]
[1727206686387,9.4,147.15,147.1,9.4]
[1727206686696,12.99334573,147.21,147.11,9.4]
[1727206686904,12.82300584,147.18,147.13,9.4]
[1727206687196,12.7978,147.17,147.13,3.3984]
[1727206687588,9.4,147.16,147.13,3.3984]
[1727206687884,9.4,147.14,147.11,3.3988]
[1727206688083,9.4,147.13,147.11,3.3988]
[1727206688284,9.4,147.12,147.05,7.83754596]
[1727206688589,9.4,147.11,147.07,9.4]
[1727206689499,12.98055716,147.22,147.07,9.4]
[1727206689799,9.4,147.11,147.07,9.4]
[1727206689998,9.4,147.11,147.08,3.3996]
[1727206690208,12.98055716,147.23,147.09,9.4]
[1727206690399,9.4,147.14,147.09,9.4]
[1727206690699,9.4,147.14,147.04,4.0408]
[1727206690700,9.4,147.15,147.12,3.3987]
[1727206691099,9.4,147.14,147.09,9.4]
[1727206691306,12.98055716,147.24,147.09,9.4]
[1727206691599,9.4,147.14,147.09,9.4]
[1727206692396,9.4,147.14,147.11,3.3988]
[1727206692704,9.4,147.18,147.13,9.4]
[1727206693505,9.4,147.18,147.14,9.4]
[1727206694305,3.3976,147.17,147.14,12.7981]
[1727206694604,3.37129935,147.22,147.15,9.4]
[1727206694605,9.4,147.2,147.15,9.4]
[1727206695006,3.3972,147.19,147.16,3.3976]
[1727206695502,3.3973,147.18,147.15,3.3979]
[1727206695808,12.7973,147.18,147.15,3.3979]
[1727206696012,9.4,147.17,147.13,9.4]
[1727206696195,12.7976,147.17,147.14,3.3981]
[1727206696402,3.3976,147.17,147.14,3.3981]
[1727206697806,3.3978,147.16,147.13,3.3984]
[1727206700105,14.69,147.17,147.11,4.1103]
[1727206701615,3.3979,147.16,147.13,3.3985]
[1727206703615,3.3979,147.16,147.14,3.3982]
[1727206703921,3.3979,147.16,147.11,4.1103]
[1727206704310,3.3979,147.16,147.13,3.3983]
[1727206704515,3.3979,147.16,147.11,4.1103]
[1727206705116,3.3979,147.16,147.13,3.3983]
[1727206705327,3.3979,147.16,147.11,4.1103]
[1727206707128,3.3979,147.16,147.13,3.3983]
[1727206707533,3.398,147.15,147.12,3.3985]
[1727206707828,14.69,147.17,147.12,3.3985]
[1727206708228,14.69,147.13,147.05,1.3969]
[1727206708434,14.69,147.13,147.06,2.7254]
[1727206708621,18.0886,147.13,147.1,3.399]
[1727206709226,14.69,147.13,147.09,3.3993]
[1727206709423,14.69,147.13,147.06,2.7254]
[1727206710331,3.3988,147.12,147.06,2.7254]
[1727206710933,3.3988,147.12,147.09,3.3993]
[1727206711232,14.69,147.13,147.09,3.3993]
[1727206711933,14.69,147.13,147.1,3.3991]
[1727206712918,14.69,147.13,147.06,2.7254]
[1727206713123,14.69,147.11,147.06,2.7254]
[1727206713727,14.69,147.11,147.09,3.3992]
[1727206714633,14.69,147.13,147.1,3.3992]
[1727206714837,14.69,147.15,147.06,1.3662]
[1727206715035,14.69,147.16,147.07,16.0932]
[1727206716035,14.69,147.16,147.12,3.3987]
[1727206716333,9.41,147.14,147.12,3.3987]
[1727206720139,18.17198504,147.2,147.12,3.3987]
[1727206720140,9.41,147.13,147.12,3.3987]
[1727206722328,9.41,147.13,147.07,1.4032]
[1727206722535,9.41,147.1,147.07,1.4032]
[1727206723034,9.41,147.1,147.09,3.3992]
[1727206724138,9.41,147.1,146.98,81.6]
[1727206724339,9.41,147.04,147.01,2.7562]
[1727206724641,9.41,147.04,147.03,3.4008]
[1727206727830,9.41,147.06,147.05,3.4002]
[1727206729134,3.46402971,147.13,147.07,3.3998]
[1727206729335,3.46402971,147.13,147.01,2.7562]
[1727206729336,9.41,147.09,147.04,9.41]
[1727206729532,9.41,147.09,147.05,9.41]
[1727206730340,3.34103751,147.13,147.09,3.3992]
[1727206730541,9.41,147.1,147.09,3.3992]
[1727206731142,9.41,147.11,147.1,3.399]
[1727206731345,9.41,147.12,147.07,9.41]
[1727206732339,14.68,147.14,147.05,14.68]
[1727206732538,14.68,147.14,147.06,1.4252]
[1727206733048,14.68,147.14,147.11,3.3988]
[1727206735644,14.68,147.14,147.12,3.3987]
[1727206736735,14.68,147.14,147.11,3.3988]
[1727206736939,14.68,147.14,147.07,2.7782]
[1727206738346,14.68,147.14,147.12,3.3987]
[1727206740957,14.68,147.14,147.07,2.7782]
[1727206740958,14.68,147.14,147.11,3.3988]
[1727206742455,14.68,147.14,147.12,3.3987]
[1727206743153,14.68,147.14,147.11,3.3988]
[1727206743549,14.68,147.14,147.07,2.7782]
[1727206745353,14.68,147.14,147.11,3.3987]
[1727206745846,14.68,147.14,147.07,2.7782]
[1727206745847,14.68,147.14,147.13,3.3985]
[1727206748650,14.68,147.14,147.07,2.7782]
[1727206749849,14.68,147.14,147.12,3.3986]
[1727206751854,14.68,147.14,147.13,3.3985]
[1727206752960,81.6,147.25,147.11,14.68]
[1727206753165,14.68,147.19,147.11,14.68]
[1727206753355,14.68,147.18,147.09,14.68]
[1727206753560,14.68,147.16,147.08,6.7992]
[1727206753872,14.68,147.14,147.07,2.7782]
[1727206754569,3.45766746,147.15,147.12,3.3986]
[1727206754763,9.4,147.13,147.12,3.3986]
[1727206755258,9.4,147.14,147.13,3.3985]
[1727206770367,9.4,147.14,147.12,3.3986]
[1727206770567,9.4,147.13,147.12,3.3986]
[1727206772479,3.42604811,147.15,147.08,9.4]
[1727206772778,9.4,147.14,147.08,9.4]
[1727206772976,12.99213806,147.23,147.11,9.4]
[1727206773276,9.4,147.18,147.14,9.4]
[1727206773466,9.4,147.18,147.17,3.3976]
[1727206775972,90.58423919,147.26,147.17,9.4]
[1727206776180,9.4,147.21,147.17,9.4]
[1727206776376,9.4,147.21,147.2,3.3969]
[1727206780982,90.58423919,147.26,147.2,3.3969]
[1727206781179,9.4,147.21,147.2,3.3969]
[1727206781894,9.4,147.23,147.21,3.3964]
[1727206782090,90.58423919,147.26,147.19,9.4]
[1727206782290,9.4,147.25,147.23,3.396]
[1727206782493,9.4,147.25,147.2,9.4]
[1727206782995,9.4,147.25,147.24,3.3959]
[1727206784696,9.4,147.25,147.19,9.4]
[1727206784895,81.58,147.34,147.19,9.4]
[1727206784896,9.4,147.22,147.19,9.4]
[1727206785100,9.4,147.22,147.21,3.3966]
[1727206786495,9.4,147.22,147.2,3.3967]
[1727206786701,9.4,147.21,147.2,3.3967]
[1727206790603,3.46190443,147.22,147.21,3.3966]
[1727206790794,9.4,147.22,147.21,3.3966]
[1727206790996,12.72200394,147.22,147.21,3.3966]
[1727206791610,12.72200394,147.22,147.2,3.3968]
[1727206791611,9.4,147.22,147.2,3.3968]
[1727206791810,9.4,147.21,147.2,3.3968]
[1727206791994,90.49561463,147.28,147.22,3.3963]
[1727206792199,9.4,147.23,147.22,3.3963]
[1727206792904,93.93827658,147.28,147.23,3.3961]
[1727206793101,93.93827658,147.28,147.21,9.4]
[1727206793313,9.4,147.26,147.21,9.4]
[1727206794209,9.4,147.25,147.24,3.3959]
[1727206799312,9.4,147.26,147.25,3.3956]
[1727206802214,3.4309794,147.37,147.2,3.32007373]
[1727206802409,238.47325716,147.38,147.27,9.4]
[1727206802410,81.54,147.38,147.27,9.4]
[1727206802609,81.54,147.38,147.3,3.3945]
[1727206802814,9.4,147.31,147.24,2.7581]
[1727206803113,9.4,147.31,147.25,9.4]
[1727206803723,9.4,147.31,147.29,3.3947]
[1727206803908,9.4,147.31,147.27,9.4]
[1727206804420,81.54,147.38,147.3,3.3944]
[1727206804622,9.4,147.31,147.25,9.4]
[1727206804815,9.4,147.3,147.25,9.4]
[1727206805018,9.4,147.3,147.24,2.7581]
[1727206805019,81.54,147.38,147.26,9.4]
[1727206805312,9.4,147.31,147.26,9.4]
[1727206805517,9.4,147.3,147.26,9.4]
[1727206805710,9.4,147.3,147.24,2.7581]
[1727206805912,9.4,147.29,147.24,12.1581]
[1727206806908,9.4,147.29,147.28,3.3948]
[1727206808416,9.4,147.3,147.29,3.3946]
[1727206811923,9.4,147.31,147.3,3.3944]
[1727206815819,3.35846365,147.32,147.3,3.3944]
[1727206816026,9.4,147.31,147.3,3.3944]
[1727206819618,81.52,147.43,147.28,9.4]
[1727206819818,9.4,147.34,147.3,9.4]
[1727206820017,12.79005502,147.35,147.31,9.4]
[1727206820224,9.4,147.35,147.34,3.3935]
[1727206820728,12.73706949,147.35,147.34,3.3935]
[1727206823822,12.73706949,147.35,147.28,9.4]
[1727206824021,9.4,147.33,147.28,9.4]
[1727206824519,9.4,147.33,147.32,3.394]
[1727206829438,9.4,147.33,147.31,3.3943]
[1727206829640,3.40882981,147.34,147.31,3.3943]
[1727206829641,9.4,147.32,147.31,3.3943]
[1727206830138,9.4,147.32,147.3,3.3944]
[1727206830329,9.4,147.31,147.3,3.3944]
[1727206836335,9.4,147.31,147.25,6.7911]
[1727206836336,12.78291092,147.32,147.31,3.3943]
[1727206836643,9.4,147.32,147.31,3.3943]
[1727206836841,12.75325249,147.32,147.31,3.3943]
[1727206838637,9.4,147.33,147.32,3.3939]
[1727206839341,12.86362833,147.33,147.32,3.3939]
[1727206845555,12.86362833,147.33,147.31,3.3942]
[1727206845861,9.4,147.32,147.31,3.3942]
[1727206846651,12.74057312,147.32,147.31,3.3942]
[1727206849965,9.4,147.32,147.31,3.3942]
[1727206854671,9.4,147.32,147.24,1.4161]
[1727206854871,9.4,147.28,147.24,1.4161]
[1727206855877,9.4,147.28,147.27,3.3952]
[1727206859974,12.92855876,147.4,147.26,9.4]
[1727206860162,9.4,147.31,147.26,9.4]
[1727206860677,9.4,147.3,147.26,9.4]
[1727206861167,9.4,147.3,147.27,2.6965]
[1727206861714,9.4,147.3,147.29,3.3948]
[1727206861879,3.43975003,147.32,147.27,2.6965]
[1727206862172,9.4,147.31,147.3,3.3944]
[1727206866885,12.92855876,147.4,147.29,9.4]
[1727206867062,12.92855876,147.4,147.27,2.6965]
[1727206867063,12.92855876,147.4,147.3,9.4]
[1727206867376,9.4,147.34,147.3,9.4]
[1727206867566,9.4,147.34,147.33,3.3939]
[1727206868781,3.3195218,147.35,147.34,3.3936]
[1727206869075,9.4,147.35,147.3,10.7376]